fUSD/lending_fUSD_20251129
["ID","MTS","AMOUNT","RATE_DAILY","PERIOD"]
[395096592,1764424250001,-500.0,0.00016521,2]
[395096593,1764424250009,-1000.0,0.00016521,2]
[395096594,1764424250019,-502.07472524,0.00016521,2]
[395096595,1764424250027,-410.80515512,0.00016521,2]
[395096596,1764424250037,-671.28775345,0.00016521,2]
[395096597,1764424250046,-1000.0,0.00016521,2]
[395096598,1764424250055,-1000.0,0.00016521,2]
[395096599,1764424250064,-298.0023857,0.00016521,2]
[395096600,1764424250073,-1000.0,0.00016521,2]
[395096601,1764424250082,-1000.0,0.00016521,2]
[395096602,1764424250091,-617.86212032,0.00016521,2]
[395096603,1764424250100,-1000.0,0.00016521,2]
[395096604,1764424250110,-1000.0,0.00016521,2]
[395096605,1764424250120,-1000.0,0.00016521,2]
[395096606,1764424250128,-1000.0,0.00016521,2]
[395096607,1764424250138,-835.08,0.00016659,2]
[395096608,1764424250147,-9961.48845509,0.00016675,2]
[395096609,1764424250156,-168.0,0.00016678,2]
[395096610,1764424250165,-1000.0,0.00016708,2]
[395096611,1764424250174,-176.07,0.00016712,2]
[395096612,1764424250182,-158.99150689,0.00016752,2]
[395096613,1764424250191,-800.0,0.000168,2]
[395096614,1764424250498,-610.0,0.00016841,2]
[395096615,1764424250515,-1321.0,0.00016841,2]
[395096616,1764424250525,-3441.0,0.00016841,2]
[395096617,1764424250535,-1603.0,0.00016841,2]
[395096618,1764424250545,-909.0,0.00016841,2]
[395096619,1764424250554,-1193.0,0.00016841,2]
[395096620,1764424250563,-640.0,0.00016841,2]
[395096621,1764424250572,-1258.0,0.00016841,2]
[395096622,1764424250581,-150.0,0.00016841,2]
[395096623,1764424250590,-254.64,0.00016841,2]
[395096624,1764424250600,-2718.0,0.00016841,2]
[395096625,1764424250609,-562.0,0.00016841,2]
[395096626,1764424250618,-1496.79096699,0.00016867,2]
[395096627,1764424250628,-150.0,0.00016872,2]
[395096628,1764424250637,-190.07902691,0.00016872,2]
[395096629,1764424250646,-150.0,0.00016872,2]
[395096630,1764424250655,-150.0,0.00016872,2]
[395096631,1764424250664,-150.0,0.00016872,2]
[395096632,1764424250673,-150.0,0.00016872,2]
[395096633,1764424250684,-150.0,0.00016872,2]
[395096634,1764424250693,-150.0,0.00016872,2]
[395096635,1764424250703,-150.89649057,0.00016872,2]
[395096636,1764424250713,-150.0,0.00016872,2]
[395096637,1764424250722,-150.0,0.00016872,2]
[395096638,1764424250731,-155.29376756,0.00016872,2]
[395096639,1764424250739,-419.99217042,0.00016872,2]
[395096640,1764424250749,-1242.0,0.00016872,2]
[395096641,1764424250758,-150.0,0.00016872,2]
[395096642,1764424250767,-150.0,0.00016872,2]
[395096643,1764424250776,-150.0,0.00016872,2]
[395096644,1764424250785,-150.0,0.00016872,2]
[395096645,1764424250794,-500.0,0.00016872,2]
[395096646,1764424250804,-500.0,0.00016872,2]
[395096647,1764424250814,-159.9648499,0.00016872,2]
[395096648,1764424250823,-500.0,0.00016872,2]
[395096649,1764424250832,-150.0,0.00016872,2]
[395096650,1764424250841,-150.0,0.00016872,2]
[395096651,1764424250850,-150.0,0.00016872,2]
[395096652,1764424250859,-150.0,0.00016872,2]
[395096653,1764424250870,-500.0,0.00016872,2]
[395096654,1764424250879,-150.0,0.00016872,2]
[395096655,1764424250890,-10000.0,0.000169,2]
[395096656,1764424250901,-1004.09752347,0.000169,2]
[395096657,1764424250911,-200.03822565,0.000169,2]
[395096658,1764424250921,-320.05908439,0.000169,2]
[395096659,1764424250930,-436.67752509,0.00016948,7]
[395096660,1764424250939,-150.0,0.00016958,5]
[395096661,1764424250948,-268.96841852,0.00016958,5]
[395096662,1764424250959,-150.0,0.00016959,5]
[395096663,1764424250968,-501.68270719,0.00016973,2]
[395096664,1764424250977,-500.0,0.00016973,2]
[395096665,1764424250987,-336.72218213,0.00016973,2]
[395096666,1764424250997,-500.0,0.00016973,2]
[395096667,1764424251007,-500.0,0.00016973,2]
[395096668,1764424251017,-500.0,0.00016973,2]
[395096669,1764424251027,-500.0,0.00016973,2]
[395096670,1764424251036,-500.0,0.00016973,2]
[395096671,1764424251046,-500.0,0.00016973,2]
[395096672,1764424251055,-415.30385931,0.00016973,2]
[395096673,1764424251066,-500.0,0.00016973,2]
[395096674,1764424251075,-500.0,0.00016973,2]
[395096675,1764424251092,-500.0,0.00016973,2]
[395096676,1764424251101,-359.11444103,0.00016973,2]
[395096677,1764424251111,-164.37509184,0.00016973,2]
[395096678,1764424251122,-500.0,0.00016973,2]
[395096679,1764424251133,-500.0,0.00016973,2]
[395096680,1764424251143,-500.0,0.00016973,2]
[395096681,1764424251152,-500.0,0.00016973,2]
[395096682,1764424251163,-500.0,0.00016973,2]
[395096683,1764424251174,-500.0,0.00016973,2]
[395096684,1764424251183,-500.0,0.00016973,2]
[395096685,1764424251194,-500.0,0.00016973,2]
[395096686,1764424251205,-500.0,0.00016973,2]
[395096687,1764424251216,-281.67573932,0.00016973,2]
[395096688,1764424251226,-500.0,0.00016973,2]
[395096689,1764424251237,-500.0,0.00016973,2]
[395096690,1764424251251,-500.0,0.00016973,2]
[395096691,1764424251268,-500.0,0.00016973,2]
[395096692,1764424251279,-500.0,0.00016973,2]
[395096693,1764424251289,-501.70301498,0.00016973,2]
[395096694,1764424251299,-557.4345573,0.00016973,2]
[395096695,1764424251310,-190.08337603,0.00016981,2]
[395096696,1764424251320,-22079.4269246,0.00016995,2]
[395096697,1764424251330,-4930.5300102,0.00016995,2]
[395096698,1764424251339,-541.0839962,0.00016999,2]
[395096699,1764424251348,-500.0,0.00016999,2]
[395096700,1764424251359,-32401.70858012,0.00017,2]
[395096701,1764424251370,-698.99224427,0.00017,2]
[395096702,1764424251379,-151.0,0.00017,2]
[395096703,1764424251388,-201.61550171,0.00017,2]
[395096704,1764424251397,-183571.36920195,0.00017,2]
[395096705,1764424251406,-159.29,0.00017,2]
[395096706,1764424251415,-2000.0,0.00017,2]
[395096707,1764424251424,-200.0,0.00017,2]
[395096708,1764424251433,-151.0,0.00017,2]
[395096709,1764424251442,-161.252309,0.00017,2]
[395096710,1764424251451,-151.0,0.00017,2]
[395096711,1764424251460,-250.0,0.00017,2]
[395096712,1764424251470,-151.0,0.00017,2]
[395096713,1764424251480,-151.0,0.00017,2]
[395096714,1764424251490,-151.0,0.00017,2]
[395096715,1764424251499,-151.0,0.00017,2]
[395096716,1764424251508,-6344.11735,0.00017,2]
[395096717,1764424251517,-7641.0,0.00017009,2]
[395096718,1764424251526,-150.0,0.00017009,2]
[395096719,1764424251535,-1242.0,0.00017009,2]
[395096720,1764424251544,-150.0,0.00017009,2]
[395096721,1764424251553,-150.0,0.00017009,2]
[395096722,1764424251563,-150.0,0.00017009,2]
[395096723,1764424251572,-500.0,0.00017009,2]
[395096724,1764424251582,-500.0,0.00017009,2]
[395096725,1764424251591,-500.0,0.00017009,2]
[395096726,1764424251601,-550.39296676,0.00017009,2]
[395096727,1764424251610,-151.0,0.00017068,2]
[395096728,1764424251619,-151.0,0.00017068,2]
[395096729,1764424251631,-151.0,0.00017068,2]
[395096730,1764424251643,-1500.0,0.00017068,2]
[395096731,1764424251652,-1500.0,0.00017068,2]
[395096732,1764424251662,-1500.0,0.00017068,2]
[395096733,1764424251672,-1500.0,0.00017068,2]
[395096734,1764424251682,-1500.0,0.00017068,2]
[395096735,1764424251692,-1500.0,0.00017068,2]
[395096736,1764424251702,-1500.0,0.00017068,2]
[395096737,1764424251710,-1500.0,0.00017068,2]
[395096738,1764424251722,-433.0,0.00017071,2]
[395096739,1764424251732,-810.0,0.00017084,2]
[395096740,1764424251741,-166.66,0.0001713,2]
[395096741,1764424251750,-150.0,0.00017146,2]
[395096742,1764424251759,-1242.0,0.00017146,2]
[395096743,1764424251768,-200.0,0.00017146,2]
[395096744,1764424251778,-150.0,0.00017146,2]
[395096745,1764424251788,-150.0,0.00017146,2]
[395096746,1764424251798,-536.0,0.00017146,2]
[395096747,1764424251807,-500.0,0.00017146,2]
[395096748,1764424251816,-500.0,0.00017146,2]
[395096749,1764424251826,-810.0,0.00017168,2]
[395096750,1764424251835,-810.0,0.00017169,2]
[395096751,1764424251844,-200.0,0.0001717,2]
[395096752,1764424251854,-300.0,0.00017177,2]
[395096753,1764424251864,-1166.0,0.00017192,2]
[395096754,1764424251874,-810.0,0.00017197,2]
[395096755,1764424251883,-1108.0,0.00017209,2]
[395096756,1764424251893,-5888.0,0.00017222,2]
[395096757,1764424251902,-810.0,0.00017238,2]
[395096758,1764424251911,-196.07,0.00017277,2]
[395096759,1764424251921,-810.0,0.00017277,2]
[395096760,1764424251932,-1242.0,0.00017283,2]
[395096761,1764424251942,-200.0,0.00017283,2]
[395096762,1764424251953,-200.0,0.00017283,2]
[395096763,1764424251968,-500.0,0.00017283,2]
[395096764,1764424251977,-500.0,0.00017283,2]
[395096765,1764424251986,-810.0,0.00017303,2]
[395096766,1764424251996,-810.0,0.00017319,2]
[395096767,1764424252007,-810.0,0.00017322,2]
[395096768,1764424252017,-200.0,0.00017342,2]
[395096769,1764424252027,-151.0,0.00017342,2]
[395096770,1764424252039,-1600.0,0.00017357,2]
[395096771,1764424252049,-1108.0,0.00017359,2]
[395096772,1764424252059,-1968.9243822,0.000174,2]
[395096773,1764424252068,-1242.0,0.0001742,2]
[395096774,1764424252077,-500.0,0.0001742,2]
[395096775,1764424252086,-500.0,0.0001742,2]
[395096776,1764424252095,-1108.0,0.00017433,2]
[395096777,1764424252104,-168.0,0.00017441,2]
[395096778,1764424252113,-1108.0,0.00017497,2]
[395096779,1764424252122,-810.0,0.00017505,2]
[395096780,1764424252132,-1000.0,0.00017521,2]
[395096781,1764424252141,-1000.0,0.00017521,2]
[395096782,1764424252151,-1000.0,0.00017521,2]
[395096783,1764424252160,-1000.0,0.00017521,2]
[395096784,1764424252169,-1000.0,0.00017521,2]
[395096785,1764424252178,-1000.0,0.00017521,2]
[395096786,1764424252188,-1000.0,0.00017521,2]
[395096787,1764424252197,-268.93907095,0.00017521,2]
[395096788,1764424252207,-1000.0,0.00017521,2]
[395096789,1764424252215,-1004.12467031,0.00017521,2]
[395096790,1764424252225,-1000.0,0.00017521,2]
[395096791,1764424252234,-1000.0,0.00017521,2]
[395096792,1764424252244,-509.64610365,0.00017521,2]
[395096793,1764424252253,-1039.82653192,0.00017521,2]
[395096794,1764424252262,-1000.0,0.00017521,2]
[395096795,1764424252271,-1000.0,0.00017521,2]
[395096796,1764424252281,-1000.0,0.00017521,2]
[395096797,1764424252294,-1000.0,0.00017521,2]
[395096798,1764424252305,-1000.0,0.00017521,2]
[395096799,1764424252316,-1000.0,0.00017521,2]
[395096800,1764424252327,-677.37163808,0.00017521,2]
[395096801,1764424252337,-168.0,0.00017534,2]
[395096802,1764424252346,-269.08724405,0.00017534,2]
[395096803,1764424252355,-1242.0,0.00017557,2]
[395096804,1764424252365,-550.0,0.00017557,2]
[395096805,1764424252374,-450.0,0.00017557,2]
[395096806,1764424252384,-413.7028584,0.00017559,2]
[395096807,1764424252393,-176.68305764,0.00017579,2]
[395096808,1764424252402,-600.11467696,0.000176,2]
[395096809,1764424252411,-2000.0,0.00017616,2]
[395096810,1764424252420,-2000.0,0.00017616,2]
[395096811,1764424252429,-2000.0,0.00017616,2]
[395096812,1764424252439,-1009.84757523,0.00017616,2]
[395096813,1764424252448,-1543.587836,0.00017616,2]
[395096814,1764424252457,-2000.0,0.00017616,2]
[395096815,1764424252467,-902.02434728,0.00017616,2]
[395096816,1764424252476,-2000.0,0.00017616,2]
[395096817,1764424252485,-172.09,0.00017659,2]
[395096818,1764424252494,-587.0,0.00017666,2]
[395096819,1764424252503,-587.0,0.00017666,2]
[395096820,1764424252513,-1242.0,0.00017694,2]
[395096821,1764424252522,-810.0,0.00017714,2]
[395096822,1764424252532,-810.0,0.0001773,2]
[395096823,1764424252541,-900.0,0.000178,3]
[395096824,1764424252551,-322.6107,0.00017802,2]
[395096825,1764424252560,-287.61899177,0.00017802,2]
[395096826,1764424252570,-599.60298507,0.00017803,2]
[395096827,1764424252579,-500.0,0.00017808,2]
[395096828,1764424252589,-1242.0,0.00017831,2]
[395096829,1764424252598,-2351.0,0.00017836,2]
[395096830,1764424252608,-500.0,0.00017945,2]
[395096831,1764424252617,-1000.0,0.00017948,2]
[395096832,1764424252627,-1242.0,0.00017968,2]
[395096833,1764424252636,-6312.83402082,0.00018,2]
[395096834,1764424252646,-328.17073037,0.0001803,6]
[395096835,1764424252655,-830.57081561,0.00018068,2]
[395096836,1764424252664,-1500.0,0.00018068,2]
[395096837,1764424252674,-1500.0,0.00018068,2]
[395096838,1764424252683,-1500.0,0.00018068,2]
[395096839,1764424252692,-500.0,0.00018068,2]
[395096840,1764424252701,-1362.64564803,0.00018068,2]
[395096841,1764424252711,-283.26620629,0.00018068,2]
[395096842,1764424252723,-1500.0,0.00018068,2]
[395096843,1764424252736,-1500.0,0.00018068,2]
[395096844,1764424252745,-1319.21380805,0.00018068,2]
[395096845,1764424252755,-1500.0,0.00018068,2]
[395096846,1764424252764,-1500.0,0.00018068,2]
[395096847,1764424252773,-508.17996373,0.00018068,2]
[395096848,1764424252782,-1558.19890298,0.00018068,2]
[395096849,1764424252792,-883.56702396,0.00018068,2]
[395096850,1764424252801,-1507.24155442,0.00018068,2]
[395096851,1764424252811,-500.0,0.00018082,2]
[395096852,1764424252820,-1000.0,0.00018082,2]
[395096853,1764424252829,-1242.0,0.00018105,2]
[395096854,1764424252839,-178.91,0.0001816,2]
[395096855,1764424252848,-2500.0,0.00018164,2]
[395096856,1764424252858,-2500.0,0.00018164,2]
[395096857,1764424252868,-1279.42621957,0.00018164,2]
[395096858,1764424252877,-1462.99365393,0.00018164,2]
[395096859,1764424252887,-2500.0,0.00018164,2]
[395096860,1764424252897,-319.08,0.00018172,2]
[395096861,1764424252910,-201.88,0.00018175,2]
[395096862,1764424252919,-548.75,0.00018201,2]
[395096863,1764424252929,-500.0,0.00018219,2]
[395096864,1764424252938,-1242.0,0.00018242,2]
[395096865,1764424252948,-200.0,0.00018319,2]
[395096866,1764424252961,-500.0,0.00018356,2]
[395096867,1764424252971,-736.0,0.00018368,2]
[395096868,1764424252980,-1242.0,0.00018379,2]
[395096869,1764424252989,-250.0,0.00018384,2]
[395096870,1764424252998,-319.08,0.00018445,2]
[395096871,1764424253007,-548.75,0.00018475,2]
[395096872,1764424253016,-500.0,0.00018493,2]
[395096873,1764424253025,-1242.0,0.00018516,2]
[395096874,1764424253035,-300.0,0.00018547,2]
[395096875,1764424253045,-269.15685643,0.00018598,2]
[395096876,1764424253054,-323.72108508,0.000186,14]
[395096877,1764424253064,-1358.96670232,0.00018616,2]
[395096878,1764424253074,-492.70829598,0.00018616,2]
[395096879,1764424253084,-1000.0,0.00018616,2]
[395096880,1764424253093,-1384.52230467,0.00018616,2]
[395096881,1764424253102,-1880.42304806,0.00018616,2]
[395096882,1764424253112,-501.84292718,0.00018616,2]
[395096883,1764424253122,-167.97644675,0.00018616,2]
[395096884,1764424253131,-500.0,0.0001863,2]
[395096885,1764424253140,-500.0,0.0001863,2]
[395096886,1764424253150,-500.0,0.0001863,2]
[395096887,1764424253159,-500.0,0.0001863,2]
[395096888,1764424253168,-500.0,0.0001863,2]
[395096889,1764424253178,-459.83789569,0.0001863,2]
[395096890,1764424253187,-1242.0,0.00018653,2]
[395096891,1764424253196,-328.17073037,0.0001866,8]
[395096892,1764424253206,-232.49216253,0.00018695,2]
[395096893,1764424253216,-9961.48845509,0.00018703,2]
[395096894,1764424253225,-1604.59203886,0.00018712,2]
[395096895,1764424253235,-3000.0,0.00018712,2]
[395096896,1764424253244,-3000.0,0.00018712,2]
[395096897,1764424253254,-319.08,0.00018719,2]
[395096898,1764424253263,-548.75,0.00018749,2]
[395096899,1764424253273,-1000.0,0.0001876,2]
[395096900,1764424253282,-500.0,0.00018767,2]
[395096901,1764424253292,-1242.0,0.0001879,2]
[395096902,1764424253301,-878.00387723,0.00018859,2]
[395096903,1764424253311,-500.0,0.000189,2]
[395096904,1764424253320,-512.0,0.000189,2]
[395096905,1764424253329,-500.0,0.000189,2]
[395096906,1764424253338,-500.0,0.000189,2]
[395096907,1764424253348,-500.0,0.000189,2]
[395096908,1764424253357,-500.0,0.000189,2]
[395096909,1764424253367,-500.0,0.000189,2]
[395096910,1764424253377,-500.0,0.000189,2]
[395096911,1764424253387,-500.0,0.000189,2]
[395096912,1764424253396,-500.0,0.000189,2]
[395096913,1764424253405,-500.0,0.000189,2]
[395096914,1764424253414,-500.0,0.000189,2]
[395096915,1764424253423,-500.0,0.000189,2]
[395096916,1764424253433,-500.0,0.000189,2]
[395096917,1764424253442,-500.0,0.000189,2]
[395096918,1764424253451,-500.0,0.000189,2]
[395096919,1764424253461,-500.0,0.000189,2]
[395096920,1764424253470,-500.0,0.000189,2]
[395096921,1764424253480,-500.0,0.000189,2]
[395096922,1764424253489,-500.0,0.000189,2]
[395096923,1764424253499,-500.0,0.000189,2]
[395096924,1764424253508,-500.0,0.000189,2]
[395096925,1764424253517,-500.0,0.000189,2]
[395096926,1764424253527,-500.0,0.000189,2]
[395096927,1764424253537,-500.0,0.000189,2]
[395096928,1764424253546,-500.0,0.000189,2]
[395096929,1764424253555,-500.0,0.000189,2]
[395096930,1764424253565,-500.0,0.000189,2]
[395096931,1764424253574,-500.0,0.000189,2]
[395096932,1764424253583,-500.0,0.000189,2]
[395096933,1764424253593,-500.0,0.000189,2]
[395096934,1764424253602,-500.0,0.000189,2]
[395096935,1764424253612,-500.0,0.000189,2]
[395096936,1764424253621,-500.0,0.000189,2]
[395096937,1764424253630,-500.0,0.000189,2]
[395096938,1764424253640,-500.0,0.000189,2]
[395096939,1764424253649,-500.0,0.00018904,2]
[395096940,1764424253658,-1242.0,0.00018927,2]
[395096941,1764424253668,-5135.56444467,0.00019,2]
[395096942,1764424253678,-32138.72631147,0.00019,2]
[395096943,1764424253687,-915.178175,0.00019,2]
[395096944,1764424253697,-300.0,0.00019,2]
[395096945,1764424253707,-151.0,0.00019,2]
[395096946,1764424253717,-151.0,0.00019,2]
[395096947,1764424253727,-152.440919,0.00019,2]
[395096948,1764424253736,-151.0,0.00019,2]
[395096949,1764424253746,-151.0,0.00019,2]
[395096950,1764424253755,-151.0,0.00019,2]
[395096951,1764424253765,-151.0,0.00019,2]
[395096952,1764424253774,-151.0,0.00019,2]
[395096953,1764424253784,-151.0,0.00019,2]
[395096954,1764424253794,-156.596061,0.00019,2]
[395096955,1764424253803,-151.0,0.00019,2]
[395096956,1764424253813,-151.0,0.00019,2]
[395096957,1764424253823,-231.5043,0.00019,2]
[395096958,1764424253833,-151.0,0.00019,2]
[395096959,1764424253842,-151.0,0.00019,2]
[395096960,1764424253852,-151.0,0.00019,2]
[395096961,1764424253861,-151.0,0.00019,2]
[395096962,1764424253871,-151.0,0.00019,2]
[395096963,1764424253880,-151.0,0.00019,2]
[395096964,1764424253890,-151.0,0.00019,2]
[395096965,1764424253900,-151.0,0.00019,2]
[395096966,1764424253910,-151.0,0.00019,2]
[395096967,1764424253920,-151.0,0.00019,2]
[395096968,1764424253930,-151.0,0.00019,2]
[395096969,1764424253940,-151.0,0.00019,2]
[395096970,1764424253950,-151.0,0.00019,2]
[395096971,1764424253974,-653.361433,0.00019,2]
[395096972,1764424253985,-151.0,0.00019,2]
[395096973,1764424253995,-151.0,0.00019,2]
[395096974,1764424254005,-653.361433,0.00019,2]
[395096975,1764424254015,-151.0,0.00019,2]
[395096976,1764424254025,-151.0,0.00019,2]
[395096977,1764424254035,-293.572583,0.00019,2]
[395096978,1764424254045,-151.0,0.00019,2]
[395096979,1764424254055,-6344.11735,0.00019,2]
[395096980,1764424254066,-401.72363687,0.00019007,2]
[395096981,1764424254075,-548.75,0.00019023,2]
[395096982,1764424254086,-1242.0,0.00019064,2]
[395096983,1764424254095,-500.0,0.00019105,2]
[395096984,1764424254105,-1000.0,0.0001917,2]
[395096985,1764424254115,-500.0,0.0001917,2]
[395096986,1764424254124,-500.0,0.0001917,2]
[395096987,1764424254134,-1000.0,0.0001917,2]
[395096988,1764424254144,-500.0,0.0001917,2]
[395096989,1764424254154,-1000.0,0.0001917,2]
[395096990,1764424254163,-151.0,0.0001917,2]
[395096991,1764424254173,-334.5472959,0.00019171,2]
[395096992,1764424254183,-298.26089446,0.00019171,2]
[395096993,1764424254192,-178.91,0.00019174,2]
[395096994,1764424254202,-151.0,0.00019178,2]
[395096995,1764424254213,-151.0,0.00019178,2]
[395096996,1764424254223,-1452.112053,0.00019178,2]
[395096997,1764424254233,-1452.112053,0.00019178,2]
[395096998,1764424254243,-1452.112053,0.00019178,2]
[395096999,1764424254253,-1452.112053,0.00019178,2]
[395097000,1764424254262,-201.88,0.00019181,2]
[395097001,1764424254272,-1242.0,0.00019201,2]
[395097002,1764424254284,-159.346991,0.0001926,2]
[395097003,1764424254293,-151.0,0.0001926,2]
[395097004,1764424254304,-151.0,0.0001926,2]
[395097005,1764424254319,-151.0,0.0001926,2]
[395097006,1764424254331,-151.0,0.0001926,2]
[395097007,1764424254342,-151.0,0.0001926,2]
[395097008,1764424254352,-151.0,0.0001926,2]
[395097009,1764424254362,-2500.0,0.0001926,7]
[395097010,1764424254372,-3000.0,0.0001926,7]
[395097011,1764424254382,-3500.0,0.0001926,2]
[395097012,1764424254392,-3500.0,0.0001926,2]
[395097013,1764424254402,-707.028212,0.0001926,2]
[395097014,1764424254412,-1600.0,0.00019285,2]
[395097015,1764424254421,-328.17073037,0.0001929,9]
[395097016,1764424254431,-548.75,0.00019297,2]
[395097017,1764424254442,-150.0,0.00019325,2]
[395097018,1764424254452,-1242.0,0.00019338,2]
[395097019,1764424254463,-823.0,0.00019339,2]
[395097020,1764424254476,-823.0,0.00019339,2]
[395097021,1764424254486,-1000.0,0.00019438,2]
[395097022,1764424254497,-1242.0,0.00019475,2]
[395097023,1764424254508,-150.0,0.00019523,2]
[395097024,1764424254519,-150.0,0.00019523,2]
[395097025,1764424254530,-150.0,0.00019523,2]
[395097026,1764424254540,-150.0,0.00019523,2]
[395097027,1764424254550,-158.99150689,0.00019544,2]
[395097028,1764424254561,-548.8,0.00019571,2]
[395097029,1764424254573,-1242.0,0.00019612,2]
[395097030,1764424254585,-3292.0,0.0001962,2]
[395097031,1764424254595,-454.754098,0.00019638,2]
[395097032,1764424254606,-454.754098,0.00019638,2]
[395097033,1764424254975,-151.0,0.00019638,2]
[395097034,1764424254984,-454.754098,0.00019638,2]
[395097035,1764424254994,-454.754098,0.00019638,2]
[395097036,1764424255005,-151.0,0.00019638,2]
[395097037,1764424255016,-399.910474,0.00019638,2]
[395097038,1764424255026,-399.910474,0.00019638,2]
[395097039,1764424255035,-461.972338,0.00019638,2]
[395097040,1764424255045,-399.910474,0.00019638,2]
[395097041,1764424255054,-151.0,0.00019638,2]
[395097042,1764424255063,-461.972338,0.00019638,2]
[395097043,1764424255072,-399.910474,0.00019638,2]
[395097044,1764424255083,-151.0,0.00019638,2]
[395097045,1764424255092,-461.972338,0.00019638,2]
[395097046,1764424255101,-151.0,0.00019638,2]
[395097047,1764424255110,-461.972338,0.00019638,2]
[395097048,1764424255120,-151.0,0.00019638,2]
[395097049,1764424255132,-151.0,0.00019638,2]
[395097050,1764424255141,-151.0,0.00019638,2]
[395097051,1764424255150,-151.0,0.00019638,2]
[395097052,1764424255159,-156.587,0.00019726,2]
[395097053,1764424255168,-413.7028584,0.0001973,2]
[395097054,1764424255177,-1000.0,0.00019743,2]
[395097055,1764424255186,-1242.0,0.00019749,2]
[395097056,1764424255196,-1252.0,0.00019754,2]
[395097057,1764424255206,-900.0,0.000198,4]
[395097058,1764424255215,-151.0,0.000198,2]
[395097059,1764424255224,-151.0,0.000198,2]
[395097060,1764424255234,-151.0,0.000198,2]
[395097061,1764424255243,-151.0,0.000198,2]
[395097062,1764424255252,-151.0,0.000198,2]
[395097063,1764424255262,-151.0,0.000198,2]
[395097064,1764424255271,-175.854296,0.000198,2]
[395097065,1764424255281,-151.0,0.000198,2]
[395097066,1764424255290,-175.854296,0.000198,2]
[395097067,1764424255299,-151.0,0.000198,2]
[395097068,1764424255309,-175.854296,0.000198,2]
[395097069,1764424255318,-270.463624,0.000198,2]
[395097070,1764424255330,-151.0,0.000198,2]
[395097071,1764424255339,-255.890202,0.000198,2]
[395097072,1764424255348,-151.0,0.000198,2]
[395097073,1764424255358,-175.854296,0.000198,2]
[395097074,1764424255367,-151.0,0.000198,2]
[395097075,1764424255376,-279.635613,0.000198,2]
[395097076,1764424255387,-311.048365,0.000198,2]
[395097077,1764424255396,-151.0,0.000198,2]
[395097078,1764424255405,-311.048365,0.000198,2]
[395097079,1764424255414,-311.048365,0.000198,2]
[395097080,1764424255424,-151.0,0.000198,2]
[395097081,1764424255433,-311.048365,0.000198,2]
[395097082,1764424255442,-151.0,0.000198,2]
[395097083,1764424255451,-151.0,0.000198,2]
[395097084,1764424255460,-151.0,0.000198,2]
[395097085,1764424255470,-151.0,0.000198,2]
[395097086,1764424255479,-233.616815,0.000198,2]
[395097087,1764424255488,-151.0,0.000198,2]
[395097088,1764424255498,-233.616815,0.000198,2]
[395097089,1764424255507,-233.616815,0.000198,2]
[395097090,1764424255516,-233.616815,0.000198,2]
[395097091,1764424255528,-448.227701,0.000198,2]